bitfinex-derivatives/quotes_BTCF0:USTF0_20250903
["timestamp","ask_amount","ask_price","bid_price","bid_amount"]
[1756901847838,0.36198928,111570.0,111560.0,0.98735928]
[1756901848145,1.18378928,111570.0,111560.0,0.98735928]
[1756901850350,0.8453,111570.0,111560.0,0.98735928]
[1756901850647,0.36198928,111570.0,111560.0,0.98735928]
[1756901850948,1.18497928,111580.0,111570.0,0.03707]
[1756901851147,1.30830082,111580.0,111570.0,0.73635928]
[1756901851346,1.28487928,111580.0,111570.0,0.73635928]
[1756901851748,1.30826035,111580.0,111570.0,0.73635928]
[1756901852346,1.30926035,111580.0,111570.0,0.73635928]
[1756901852749,1.31026035,111580.0,111570.0,0.73635928]
[1756901853050,1.31026035,111580.0,111570.0,0.98635928]
[1756901853248,1.18683928,111580.0,111570.0,0.98635928]
[1756901854950,1.18679928,111580.0,111570.0,0.98635928]
[1756901856848,0.002,111580.0,111570.0,0.98635928]
[1756901857153,0.50755,111580.0,111570.0,1.35635928]
[1756901857353,0.002,111580.0,111570.0,1.35635928]
[1756901858757,0.001,111580.0,111570.0,1.35635928]
[1756901859255,0.02463,111580.0,111570.0,0.98635928]
[1756901861260,0.02463,111580.0,111570.0,0.64787]
[1756901861554,0.36311928,111580.0,111570.0,0.98635928]
[1756901862754,0.02441,111590.0,111580.0,0.01461]
[1756901862952,0.34431,111590.0,111580.0,0.73674928]
[1756901863153,1.16571,111590.0,111580.0,1.07523856]
[1756901863552,1.16571,111590.0,111580.0,1.08433059]
[1756901863856,1.16671,111590.0,111580.0,1.08433059]
[1756901864056,1.16671,111590.0,111580.0,0.40735203]
[1756901864057,1.16771,111590.0,111580.0,0.40735203]
[1756901864246,0.34631,111590.0,111580.0,1.08433059]
[1756901865455,0.322,111590.0,111580.0,1.48229406]
[1756901865655,0.002,111590.0,111580.0,2.52361406]
[1756901866854,0.001,111590.0,111580.0,2.52361406]
[1756901867152,0.33858928,111600.0,111580.0,1.35229406]
[1756901867352,0.74289928,111600.0,111590.0,0.73674928]
[1756901867566,0.74279928,111600.0,111590.0,0.73674928]
[1756901868858,0.74379928,111600.0,111590.0,0.73674928]
[1756901869166,0.40531,111600.0,111590.0,0.73674928]
[1756901869465,0.74479928,111600.0,111590.0,0.73674928]
[1756901872055,0.40631,111600.0,111590.0,0.73674928]
[1756901872263,0.02631,111600.0,111590.0,0.73674928]
[1756901873569,0.02631,111600.0,111590.0,0.39826]
[1756901873869,0.36479928,111600.0,111590.0,0.39826]
[1756901874064,0.36479928,111600.0,111590.0,0.73674928]
[1756901875670,0.02631,111600.0,111590.0,0.39826]
[1756901877172,0.47741855,111600.0,111590.0,0.39826]
[1756901877371,0.47741855,111600.0,111590.0,0.40274]
[1756901879877,0.02631,111600.0,111590.0,0.40274]
[1756901883584,0.02631,111600.0,111590.0,0.85384855]
[1756901885087,0.02631,111600.0,111590.0,0.40274]
[1756901885287,0.04969705,111600.0,111590.0,0.40274]
[1756901885787,0.04969706,111600.0,111590.0,0.40274]
[1756901889990,0.02538706,111600.0,111590.0,0.40274]
[1756901890289,0.04973706,111600.0,111590.0,0.40274]
[1756901891882,0.02538706,111600.0,111590.0,0.40274]
[1756901893984,0.04973706,111600.0,111590.0,0.40274]
[1756901896892,0.50084561,111600.0,111590.0,0.40274]
[1756901897586,0.04973706,111600.0,111590.0,0.40274]
[1756901900598,0.47649561,111600.0,111590.0,0.40274]
[1756901900799,0.02538706,111600.0,111590.0,0.40274]
[1756901901294,0.02538706,111600.0,111590.0,0.85384855]
[1756901901985,0.02438706,111600.0,111590.0,0.85384855]
[1756901902485,0.0001,111610.0,111590.0,1.18384855]
[1756901902694,0.0001,111610.0,111600.0,0.85117855]
[1756901902695,0.02352889,111610.0,111600.0,0.85117855]
[1756901902890,0.45110855,111630.0,111610.0,0.01499]
[1756901902891,0.84505,111620.0,111610.0,0.01499]
[1756901903096,1.17837793,111620.0,111610.0,0.40007]
[1756901903900,1.17837793,111620.0,111610.0,0.40454]
[1756901904098,1.17937793,111620.0,111610.0,0.40454]
[1756901905398,1.18037793,111620.0,111610.0,0.40454]
[1756901905701,1.18033793,111620.0,111610.0,0.40454]
[1756901905895,0.35977793,111620.0,111610.0,0.40454]
[1756901906094,1.18033793,111620.0,111610.0,0.40454]
[1756901906490,0.35977793,111620.0,111610.0,0.40454]
[1756901906697,0.002,111620.0,111610.0,1.44564855]
[1756901906899,0.002,111620.0,111610.0,1.53522135]
[1756901907399,0.002,111620.0,111610.0,1.44564855]
[1756901907894,0.001,111620.0,111610.0,1.44564855]
[1756901908794,0.001,111620.0,111610.0,2.26612855]
[1756901909095,0.02445,111630.0,111620.0,0.01499]
[1756901909397,0.02435,111630.0,111620.0,0.40007]
[1756901910293,0.02535,111630.0,111620.0,0.40007]
[1756901910603,0.001,111630.0,111620.0,0.85117855]
[1756901910803,0.02635,111630.0,111620.0,0.40007]
[1756901911102,0.47745855,111630.0,111620.0,0.40007]
[1756901912700,0.02635,111630.0,111620.0,0.40007]
[1756901914599,0.02635,111630.0,111620.0,0.40914762]
[1756901915794,0.47745855,111630.0,111620.0,0.40914762]
[1756901916798,1.29777855,111630.0,111620.0,0.40914762]
[1756901917108,1.54777855,111630.0,111620.0,0.40007]
[1756901918206,1.88777855,111630.0,111620.0,0.40007]
[1756901920007,1.88777855,111630.0,111620.0,0.40454]
[1756901920209,1.88777855,111630.0,111620.0,0.00447]
[1756901920695,1.91113011,111630.0,111620.0,0.00447]
[1756901921099,2.27193011,111630.0,111620.0,0.00447]
[1756901924001,0.00801,111620.0,111600.0,0.37579]
[1756901924303,1.29522855,111610.0,111600.0,0.39894]
[1756901924507,1.58522855,111610.0,111600.0,0.39894]
[1756901924708,1.59522855,111610.0,111600.0,0.39894]
[1756901925108,1.59522855,111610.0,111600.0,0.39994]
[1756901925604,1.59522855,111610.0,111600.0,0.40194]
[1756901927004,1.59522855,111610.0,111600.0,0.39994]
[1756901927507,1.59522855,111610.0,111600.0,0.39894]
[1756901928002,1.59522855,111610.0,111600.0,0.03814]
[1756901928605,1.60522855,111610.0,111600.0,0.03814]
[1756901929505,1.60622855,111610.0,111600.0,0.03814]
[1756901929905,1.59622855,111610.0,111600.0,0.03814]
[1756901930211,1.59722855,111610.0,111600.0,0.03814]
[1756901931316,1.61094855,111610.0,111600.0,0.02315]
[1756901932613,1.61094855,111610.0,111600.0,0.0368]
[1756901935014,1.59722855,111610.0,111600.0,0.0368]
[1756901937516,1.48443163,111610.0,111600.0,0.0368]
[1756901939214,1.48443163,111610.0,111600.0,0.3976]
[1756901939416,0.66423163,111610.0,111600.0,0.3976]
[1756901939616,1.48439163,111610.0,111600.0,0.3976]
[1756901939917,1.48439163,111610.0,111600.0,0.0368]
[1756901940115,1.48439163,111610.0,111600.0,0.3976]
[1756901941717,1.82274326,111610.0,111600.0,0.3976]
[1756901942217,1.00258326,111610.0,111600.0,0.3976]
[1756901942518,1.82270326,111610.0,111600.0,0.3976]
[1756901943018,1.48435163,111610.0,111600.0,0.3976]
[1756901943719,1.50772703,111610.0,111600.0,0.3976]
[1756901944717,1.84607866,111610.0,111600.0,0.3608]
[1756901945213,1.85517614,111610.0,111600.0,0.3608]
[1756901945616,2.21597614,111610.0,111590.0,0.37541]
[1756901945917,0.71306326,111600.0,111590.0,0.39856]
[1756901946118,1.08643866,111600.0,111590.0,0.39856]
[1756901946512,1.08643866,111600.0,111580.0,0.37445]
[1756901946714,1.18231163,111590.0,111580.0,0.3976]
[1756901946919,1.54231163,111590.0,111580.0,0.3976]
[1756901948917,0.36223163,111590.0,111580.0,0.3976]
[1756901949220,1.47231163,111590.0,111580.0,0.3976]
[1756901949520,1.48231163,111590.0,111580.0,0.3976]
[1756901952120,1.46231163,111590.0,111580.0,0.3976]
[1756901952315,0.64223163,111590.0,111580.0,0.3976]
[1756901952522,1.18227163,111590.0,111580.0,0.3976]
[1756901953426,0.84392,111590.0,111580.0,0.3976]
[1756901953722,1.18227163,111590.0,111580.0,0.73595163]
[1756901954819,0.82004,111590.0,111580.0,1.07430326]
[1756901955024,0.36131163,111600.0,111590.0,0.03837]
[1756901955222,1.20464779,111600.0,111590.0,0.73752163]
[1756901955726,0.86629616,111600.0,111590.0,0.73752163]
[1756901956023,1.20464779,111600.0,111590.0,0.73752163]
[1756901956425,0.86629616,111600.0,111590.0,1.34752163]
[1756901956617,0.8429,111600.0,111590.0,1.34752163]
[1756901956819,0.02286,111600.0,111590.0,1.34752163]
[1756901957019,0.02386,111600.0,111590.0,1.34752163]
[1756901957219,0.002,111600.0,111590.0,1.34752163]
[1756901957819,0.002,111600.0,111590.0,2.16752163]
[1756901958026,0.002,111600.0,111590.0,2.50587326]
[1756901958222,0.001,111600.0,111590.0,2.16752163]
[1756901958416,0.02286,111600.0,111590.0,1.32752163]
[1756901958621,0.02286,111600.0,111590.0,2.14752163]
[1756901959118,0.33845163,111610.0,111590.0,2.14752163]
[1756901959323,0.36131163,111610.0,111600.0,0.73752163]
[1756901959523,0.36121163,111610.0,111600.0,0.73752163]
[1756901959925,0.36121163,111610.0,111600.0,0.39917]
[1756901960128,0.36121163,111610.0,111600.0,0.73752163]
[1756901960624,0.36221163,111610.0,111600.0,0.73752163]
[1756901961336,0.36321163,111610.0,111600.0,0.73752163]
[1756901961716,0.36321163,111610.0,111600.0,0.39917]
[1756901963619,0.36321163,111610.0,111600.0,0.73752163]
[1756901964224,0.002,111610.0,111600.0,1.31752163]
[1756901964427,0.002,111610.0,111600.0,2.52380549]
[1756901964726,0.002,111610.0,111600.0,2.62421088]
[1756901965533,0.002,111610.0,111600.0,2.63421088]
[1756901966025,0.001,111610.0,111600.0,2.63421088]
[1756901966224,0.001,111610.0,111600.0,2.61421088]
[1756901967230,0.0001,111620.0,111610.0,0.1279427]
[1756901967431,0.05398,111650.0,111610.0,0.1279427]
[1756901967432,0.0001,111630.0,111620.0,0.03837]
[1756901967629,0.02296,111640.0,111630.0,0.03837]
[1756901967835,0.19286,111640.0,111630.0,0.73752163]
[1756901968519,0.33845163,111650.0,111630.0,0.73752163]
[1756901968520,0.0001,111650.0,111640.0,0.01467]
[1756901968721,0.38286,111650.0,111640.0,1.08481404]
[1756901969124,0.38286,111650.0,111640.0,0.74646241]
[1756901970932,0.38686,111650.0,111640.0,0.74646241]
[1756901974736,0.72521163,111650.0,111640.0,0.40811078]
[1756901974933,0.72521163,111650.0,111640.0,0.39917]
[1756901975328,0.98322163,111650.0,111640.0,0.3608]
[1756901975833,0.98322163,111650.0,111640.0,0.3845]
[1756901977925,1.32157326,111650.0,111640.0,0.3608]
[1756901978139,0.98322163,111650.0,111640.0,0.3608]
[1756901978441,1.32157326,111650.0,111640.0,0.3608]
[1756901979435,1.34474554,111650.0,111640.0,0.3608]
[1756901980641,0.66804228,111650.0,111640.0,0.3608]
[1756901980940,1.34474554,111650.0,111640.0,0.3608]
[1756901982038,1.82583391,111650.0,111640.0,0.38381]
[1756901982439,1.82583391,111650.0,111640.0,0.3608]
[1756901983138,2.16418554,111650.0,111640.0,0.3608]
[1756901985534,0.03694,111640.0,111630.0,0.38381]
[1756901985736,1.11681554,111640.0,111630.0,0.38381]
[1756901985936,0.72433554,111640.0,111630.0,0.39821]
[1756901986137,1.20534391,111640.0,111630.0,0.39821]
[1756901986633,1.58534391,111640.0,111630.0,0.39821]
[1756901987039,0.38598391,111640.0,111630.0,0.39821]
[1756901987242,1.20634391,111640.0,111630.0,0.39821]
[1756901988239,1.20734391,111640.0,111630.0,0.39821]
[1756901988436,0.72633554,111640.0,111630.0,0.39821]
[1756901988740,1.54565554,111640.0,111630.0,0.39821]
[1756901990546,0.72633554,111640.0,111630.0,0.39821]
[1756901990752,1.54565554,111640.0,111630.0,0.39821]
[1756901991353,1.20730391,111640.0,111630.0,0.73656163]
[1756901991539,1.20730391,111640.0,111630.0,0.39821]
[1756901992947,0.38798391,111640.0,111630.0,0.39821]
[1756901993152,1.20726391,111640.0,111630.0,0.39821]
[1756901994646,1.54561554,111640.0,111630.0,0.39821]
[1756901996348,0.86891228,111640.0,111630.0,0.39821]
[1756901996549,1.54561554,111640.0,111630.0,0.39821]
[1756901998551,1.20726391,111640.0,111630.0,0.39821]
[1756901999552,1.31974831,111640.0,111630.0,0.39821]
[1756902001648,0.04963228,111640.0,111630.0,0.84904603]
[1756902001953,0.02517228,111640.0,111630.0,1.42904603]
[1756902002151,0.002,111640.0,111630.0,0.64821]
[1756902002351,0.002,111640.0,111630.0,1.42904603]
[1756902002946,0.002,111640.0,111630.0,2.33776273]
[1756902003158,0.002,111640.0,111630.0,2.60156273]
[1756902005047,0.002,111640.0,111630.0,2.1507267]
[1756902005247,0.002,111640.0,111630.0,2.60156273]
[1756902011661,0.002,111640.0,111630.0,1.78240273]
[1756902011858,0.002,111640.0,111630.0,2.1504867]
[1756902012154,0.002,111640.0,111630.0,2.60132273]
[1756902016065,0.002,111640.0,111630.0,1.78240273]
[1756902016257,0.002,111640.0,111630.0,2.60124273]
[1756902019967,0.002,111640.0,111630.0,2.68164812]
[1756902021068,0.002,111640.0,111630.0,3.04244812]
[1756902022366,0.002,111640.0,111630.0,2.59161209]
[1756902022567,0.0717,111680.0,111670.0,0.01421]
[1756902022568,0.0001,111680.0,111670.0,0.01421]
[1756902022770,0.34321,111680.0,111670.0,0.3992]
[1756902023662,0.34321,111680.0,111670.0,0.85003603]
[1756902024268,0.34321,111680.0,111670.0,0.3992]
[1756902024469,0.34321,111680.0,111670.0,0.85003603]
[1756902024968,0.34321,111680.0,111670.0,0.8589385]
[1756902024969,0.35321,111680.0,111670.0,0.8589385]
[1756902029574,0.37665326,111680.0,111670.0,0.8589385]
[1756902029770,0.37665326,111680.0,111670.0,0.40810247]
[1756902030077,0.37665326,111680.0,111670.0,0.8589385]
[1756902037985,0.37665326,111680.0,111670.0,0.40810247]
[1756902038281,0.82748929,111680.0,111670.0,0.3992]
[1756902038487,0.83996929,111680.0,111670.0,0.3992]
[1756902038679,0.83998105,111680.0,111670.0,0.3992]
[1756902039692,0.82750105,111680.0,111670.0,0.3992]
[1756902039989,0.37666502,111680.0,111670.0,0.3992]
[1756902040588,0.37666502,111680.0,111670.0,0.40823966]
[1756902046307,0.37667499,111680.0,111670.0,0.40823966]
[1756902046998,0.37667499,111680.0,111670.0,0.3992]
[1756902047203,0.82751102,111680.0,111670.0,0.3992]
[1756902048209,1.08999102,111680.0,111660.0,0.37501]
[1756902048509,0.02304,111670.0,111660.0,0.39872]
[1756902048807,0.36650499,111670.0,111660.0,0.39872]
[1756902049507,0.36650499,111670.0,111660.0,0.84955603]
[1756902049710,0.34304,111670.0,111660.0,0.84955603]
[1756902049910,0.34304,111670.0,111660.0,0.85843592]
[1756902051200,0.34704,111670.0,111660.0,0.85843592]
[1756902052109,0.35104,111670.0,111660.0,0.85843592]
[1756902053214,0.35104,111670.0,111660.0,0.40759989]
[1756902053413,0.35104,111670.0,111660.0,0.85843592]
[1756902053624,0.35104,111670.0,111660.0,0.40759989]
[1756902058510,0.35104,111670.0,111660.0,0.39872]
[1756902059413,0.68896664,111670.0,111660.0,0.73664664]
[1756902059616,0.35104,111670.0,111660.0,0.73664664]
[1756902059817,0.68896664,111670.0,111660.0,0.73664664]
[1756902060315,0.35104,111670.0,111660.0,0.73664664]
[1756902060516,0.68896664,111670.0,111660.0,0.73664664]
[1756902060719,0.68896664,111670.0,111660.0,0.74571534]
[1756902061417,0.35104,111670.0,111660.0,0.74571534]
[1756902061616,0.35104,111670.0,111660.0,1.08364198]
[1756902061809,0.35104,111670.0,111660.0,0.74571534]
[1756902062918,0.35104,111670.0,111660.0,1.08364198]
[1756902063219,0.68896664,111670.0,111660.0,1.08364198]
[1756902063418,0.68896664,111670.0,111660.0,0.4077887]
[1756902063620,0.68896664,111670.0,111660.0,0.39872]
[1756902063808,0.71232807,111670.0,111660.0,0.73664664]
[1756902064413,0.68896664,111670.0,111660.0,0.74544603]
[1756902067023,0.35104,111670.0,111660.0,0.74544603]
[1756902067223,0.68896664,111670.0,111660.0,0.74544603]
[1756902069024,0.36896664,111670.0,111660.0,0.74544603]
[1756902071218,0.008,111670.0,111660.0,0.74544603]
[1756902071423,0.008,111670.0,111660.0,1.08337267]
[1756902072224,0.03136767,111670.0,111660.0,1.08337267]
[1756902072428,0.008,111670.0,111660.0,1.08337267]
[1756902074325,0.03137101,111670.0,111660.0,1.08337267]
[1756902076127,0.36929765,111670.0,111660.0,0.74544603]
[1756902076334,0.39333765,111670.0,111660.0,0.74544603]
[1756902078528,0.05541101,111670.0,111660.0,0.74544603]
[1756902078735,0.05541101,111670.0,111660.0,0.40751939]
[1756902078931,0.39333765,111670.0,111660.0,0.74544603]
[1756902089228,0.39333766,111670.0,111660.0,0.74544603]
[1756902090429,0.05541102,111670.0,111660.0,0.74544603]
[1756902090638,0.39333766,111670.0,111660.0,0.74544603]
[1756902091135,0.39333766,111670.0,111660.0,1.08337267]
[1756902091638,0.39333766,111670.0,111660.0,0.74544603]
[1756902091833,0.05541102,111670.0,111660.0,0.74544603]
[1756902092032,0.39333766,111670.0,111660.0,0.39872]
[1756902092333,1.2281243,111670.0,111650.0,0.37501]
[1756902092641,1.54697328,111660.0,111650.0,0.39839]
[1756902092836,1.9503443,111660.0,111650.0,0.39839]
[1756902093136,1.61241766,111660.0,111650.0,0.73631664]
[1756902093338,1.27449102,111660.0,111650.0,0.73631664]
[1756902093637,1.61241766,111660.0,111650.0,0.73631664]
[1756902094240,1.61541766,111660.0,111650.0,0.73631664]
[1756902095033,1.61841766,111660.0,111650.0,0.73631664]
[1756902095239,0.77133766,111660.0,111650.0,0.73631664]
[1756902098740,1.1092643,111660.0,111650.0,0.39839]
[1756902099038,0.43341102,111660.0,111650.0,0.39839]
[1756902099340,1.1092643,111660.0,111650.0,0.39839]
[1756902099538,0.89877102,111660.0,111650.0,0.73631664]
[1756902099840,1.21364664,111660.0,111650.0,0.73631664]
[1756902100943,1.21364664,111660.0,111650.0,0.39839]
[1756902101148,0.36796664,111660.0,111650.0,0.73631664]
[1756902101446,1.21364664,111660.0,111650.0,0.73631664]
[1756902101947,1.21364664,111660.0,111650.0,0.39839]
[1756902102247,1.21364664,111660.0,111650.0,0.73631664]
[1756902102748,0.36796664,111660.0,111650.0,0.73631664]
[1756902102938,1.21280664,111660.0,111650.0,0.73631664]
[1756902105450,1.21224664,111660.0,111650.0,0.73631664]
[1756902105849,0.36796664,111660.0,111650.0,0.73631664]
[1756902106650,0.03004,111660.0,111650.0,0.73631664]
[1756902114961,0.03004,111660.0,111650.0,0.39839]
[1756902115173,0.03004,111660.0,111650.0,0.73631664]
[1756902117171,0.03004,111660.0,111650.0,1.09711664]
[1756902119579,0.0533787,111660.0,111650.0,1.209789]
[1756902120279,0.0533787,111660.0,111650.0,0.75919]
[1756902120471,0.0533787,111660.0,111650.0,1.209789]
[1756902120671,0.0293387,111660.0,111650.0,1.209789]
[1756902122080,0.0293387,111660.0,111650.0,2.049869]
[1756902122480,0.0293387,111660.0,111650.0,2.669869]
[1756902122979,0.006,111660.0,111650.0,2.669869]
[1756902123881,0.006,111660.0,111650.0,2.7594096]
[1756902128385,0.006,111660.0,111650.0,1.37919]
[1756902128578,0.006,111660.0,111650.0,2.7576896]
[1756902129680,0.006,111660.0,111650.0,2.83809499]
[1756902134887,0.006,111660.0,111650.0,2.83673499]
[1756902136386,0.006,111660.0,111650.0,2.7563296]
[1756902136784,0.006,111660.0,111650.0,2.83673499]
[1756902139686,0.006,111660.0,111650.0,2.7563296]
[1756902140288,0.006,111660.0,111650.0,3.0201296]
[1756902147790,0.006,111660.0,111650.0,3.10053499]
[1756902150291,0.006,111660.0,111650.0,3.00751439]
[1756902150897,0.006,111660.0,111650.0,3.09705499]
[1756902151597,0.006,111660.0,111650.0,3.0166496]
[1756902152191,0.006,111660.0,111650.0,2.26356087]
[1756902152386,0.006,111660.0,111650.0,2.073589]
[1756902152595,0.006,111660.0,111650.0,3.00936674]
[1756902155004,0.006,111660.0,111650.0,2.78892674]
[1756902155797,0.006,111660.0,111650.0,1.13540774]
[1756902156009,0.006,111660.0,111650.0,1.58600674]
[1756902156195,0.006,111660.0,111650.0,2.306429]
[1756902157300,0.006,111660.0,111650.0,1.473589]
[1756902157604,0.256,111660.0,111650.0,2.306229]
[1756902157994,0.256,111660.0,111650.0,1.02299]
[1756902158191,0.28007,111660.0,111650.0,1.59167]
[1756902159406,0.28007,111660.0,111650.0,2.042269]
[1756902160706,0.28007,111660.0,111650.0,1.59167]
[1756902162404,0.28007,111660.0,111650.0,2.042269]
[1756902164109,0.28007,111660.0,111650.0,1.209789]
[1756902164309,0.28007,111660.0,111650.0,2.041029]
[1756902171715,0.03007,111660.0,111650.0,1.209789]
[1756902172009,0.980669,111660.0,111650.0,0.75919]
[1756902174916,0.730669,111660.0,111650.0,0.75919]
[1756902177707,0.28007,111660.0,111650.0,0.75919]
[1756902179417,0.03007,111660.0,111650.0,0.75919]
[1756902180216,0.480669,111660.0,111650.0,0.75919]
[1756902180618,0.03007,111660.0,111650.0,0.75919]
[1756902181623,0.36807146,111660.0,111650.0,1.09719146]
[1756902182118,1.07607292,111660.0,111650.0,1.09719146]
[1756902182722,1.07607292,111660.0,111650.0,0.75919]
[1756902184019,2.15559292,111660.0,111650.0,0.75919]
[1756902184320,2.16360292,111660.0,111650.0,0.03759]
[1756902184621,2.16360292,111660.0,111650.0,0.02338]
[1756902185360,2.18684283,111660.0,111650.0,0.02338]
[1756902185546,1.82604411,111660.0,111650.0,0.38418]
[1756902185729,0.36807146,111660.0,111650.0,0.73570146]
[1756902185918,0.34400146,111660.0,111650.0,0.73570146]
[1756902186118,0.36821146,111660.0,111650.0,0.73570146]
[1756902186823,0.03021,111660.0,111650.0,0.73570146]
[1756902187420,0.36821146,111660.0,111650.0,0.73570146]
[1756902188231,0.03021,111660.0,111650.0,0.73570146]
[1756902188828,0.36821146,111660.0,111650.0,0.73570146]
[1756902189228,0.70621292,111660.0,111650.0,0.3977]
[1756902189423,1.06621292,111660.0,111650.0,0.3977]
[1756902191029,1.08944997,111660.0,111650.0,0.3977]
[1756902191530,1.06621292,111660.0,111650.0,0.3977]
[1756902192619,1.32307292,111660.0,111650.0,0.02338]
[1756902192826,1.34631007,111660.0,111640.0,0.37501]
[1756902193025,1.19042146,111650.0,111640.0,0.39876]
[1756902193330,0.85242,111650.0,111640.0,0.39876]
[1756902193529,1.19042146,111650.0,111640.0,0.39876]
[1756902194337,1.19142146,111650.0,111640.0,0.39876]
[1756902194737,1.54142146,111650.0,111640.0,0.39876]
[1756902195436,1.54342146,111650.0,111640.0,0.39876]
[1756902200442,1.20542,111650.0,111640.0,0.39876]
[1756902200636,1.54342146,111650.0,111640.0,0.39876]
[1756902202341,0.71386146,111650.0,111640.0,0.39876]
[1756902202542,1.54338146,111650.0,111640.0,0.39876]
[1756902204943,0.71386146,111650.0,111640.0,0.39876]
[1756902205239,1.54334146,111650.0,111640.0,0.39876]
[1756902211846,1.56658647,111650.0,111640.0,0.39876]
[1756902212046,1.54334146,111650.0,111640.0,0.39876]
[1756902213046,1.56658844,111650.0,111640.0,0.39876]
[1756902213348,1.54334146,111650.0,111640.0,0.39876]
[1756902214149,1.55020146,111650.0,111640.0,0.39872]
[1756902217059,1.54334146,111650.0,111640.0,0.39872]
[1756902217251,0.73711439,111650.0,111640.0,0.39872]
[1756902217452,1.56643439,111650.0,111640.0,0.39872]
[1756902219660,1.54318146,111650.0,111640.0,0.39872]
[1756902224261,1.56644583,111650.0,111640.0,0.39872]
[1756902229256,1.22844437,111650.0,111640.0,0.39872]
[1756902229467,1.56644583,111650.0,111640.0,0.39872]
[1756902230150,1.22844437,111650.0,111640.0,0.39872]
[1756902230557,1.56624583,111650.0,111640.0,0.39872]
[1756902231564,0.73712583,111650.0,111640.0,0.39872]
[1756902231865,1.56620583,111650.0,111640.0,0.39872]
[1756902232866,0.73712583,111650.0,111640.0,0.39872]
[1756902233169,1.56616583,111650.0,111640.0,0.39872]
[1756902234966,1.56615778,111650.0,111640.0,0.39872]
[1756902238362,0.39911632,111650.0,111640.0,0.39872]
[1756902238567,1.56603778,111650.0,111640.0,0.39872]
[1756902239474,0.38711778,111650.0,111640.0,0.39872]
[1756902239670,1.21599778,111650.0,111640.0,0.73672146]
[1756902240367,1.21599778,111650.0,111640.0,0.39872]
[1756902240667,1.21599778,111650.0,111640.0,0.73672146]
[1756902241474,1.32872581,111650.0,111640.0,0.39872]
[1756902241674,0.49984581,111650.0,111640.0,0.39872]
[1756902241870,1.32868581,111650.0,111640.0,0.39872]
[1756902243377,0.87795632,111650.0,111640.0,0.39872]
[1756902243575,1.32868581,111650.0,111640.0,0.39872]
[1756902244771,1.33558581,111650.0,111640.0,0.3608]
[1756902244974,1.33558581,111650.0,111640.0,0.38339]
[1756902247774,0.50674581,111650.0,111640.0,0.38339]
[1756902247966,1.33546581,111650.0,111640.0,0.38339]
[1756902250884,1.32848581,111650.0,111640.0,0.39807]
[1756902251076,1.32844581,111650.0,111640.0,0.39807]
[1756902251276,1.32844584,111650.0,111640.0,0.39807]
[1756902254982,0.87771635,111650.0,111640.0,0.39807]
[1756902255180,1.32844584,111650.0,111640.0,0.39807]
[1756902258379,0.49984584,111650.0,111640.0,0.39807]
[1756902258586,1.32828584,111650.0,111640.0,0.39807]
[1756902266689,0.87755635,111650.0,111640.0,0.39807]
[1756902266880,1.32828584,111650.0,111640.0,0.39807]
[1756902269281,0.87755635,111650.0,111640.0,0.39807]
[1756902269579,1.33518584,111650.0,111640.0,0.39807]
[1756902274192,1.34406408,111650.0,111640.0,0.39807]
[1756902274486,1.33518584,111650.0,111640.0,0.39807]
[1756902274995,0.88445635,111650.0,111640.0,0.39807]
[1756902275297,1.33518584,111650.0,111640.0,0.39807]
[1756902283995,0.03595,111640.0,111630.0,0.02466]
[1756902284294,0.03595,111640.0,111620.0,0.37441]
[1756902284295,0.83997712,111640.0,111620.0,0.37441]
[1756902284495,1.30187949,111630.0,111620.0,0.71907]
[1756902285291,0.02347,111630.0,111620.0,0.39907]
[1756902285486,0.40867,111630.0,111620.0,0.46907]
[1756902286695,0.85939949,111630.0,111620.0,0.47907]
[1756902286893,0.85939949,111630.0,111620.0,0.48888898]
[1756902287093,0.85939949,111630.0,111620.0,0.48988898]
[1756902287295,0.02347,111630.0,111620.0,0.48988898]
[1756902287495,0.84495949,111630.0,111620.0,0.48988898]
[1756902290597,1.30175949,111630.0,111620.0,0.48988898]
[1756902293398,0.47419949,111630.0,111620.0,0.48988898]
[1756902293597,1.30167949,111630.0,111620.0,0.48988898]
[1756902297498,1.30167949,111630.0,111620.0,0.40988898]
[1756902297900,1.30968949,111630.0,111620.0,0.40988898]
[1756902298700,1.30968949,111630.0,111620.0,0.38746]
[1756902300403,0.85095,111630.0,111620.0,0.40188]
[1756902300706,1.30167949,111630.0,111620.0,0.40188]
[1756902301601,1.30167949,111630.0,111620.0,0.04108]
[1756902302003,1.30167949,111630.0,111620.0,0.04008]
[1756902302198,1.31168949,111630.0,111620.0,0.02566]
[1756902302601,1.67343949,111630.0,111620.0,0.04008]
[1756902303004,1.67343949,111630.0,111620.0,0.03908]
[1756902303207,1.67443949,111630.0,111620.0,0.03908]
[1756902303393,1.30443949,111630.0,111620.0,0.11908]
[1756902303594,1.19190035,111630.0,111620.0,0.11908]
[1756902303800,0.02647,111630.0,111620.0,0.11908]
[1756902304007,0.36466035,111630.0,111620.0,0.81807035]
[1756902304201,1.19182035,111630.0,111620.0,1.10807035]
[1756902304505,1.19182035,111630.0,111620.0,1.11807035]
[1756902305205,0.85363,111630.0,111620.0,0.80807035]
[1756902305410,1.19182035,111630.0,111620.0,0.80807035]
[1756902306102,0.36266035,111630.0,111620.0,0.80807035]
[1756902306293,1.19078035,111630.0,111620.0,0.80807035]
[1756902306897,1.18978035,111630.0,111620.0,0.80807035]
[1756902308310,1.18878035,111630.0,111620.0,0.80807035]
[1756902308611,1.18978035,111630.0,111620.0,0.80807035]
[1756902308810,0.36266035,111630.0,111620.0,0.80807035]
[1756902309107,1.18970035,111630.0,111620.0,0.80807035]
[1756902310010,1.18970035,111630.0,111620.0,0.46988]
[1756902310217,1.18970035,111630.0,111620.0,0.80807035]
[1756902311609,1.18970035,111630.0,111620.0,0.46988]
[1756902311810,1.18970035,111630.0,111620.0,0.80807035]
[1756902312811,1.18970035,111630.0,111620.0,0.46988]
[1756902313109,1.18970035,111630.0,111620.0,0.80807035]
[1756902313309,1.21387766,111630.0,111620.0,0.80807035]
[1756902314011,1.21375766,111630.0,111620.0,0.80807035]
[1756902315005,1.21371766,111630.0,111620.0,1.09807035]
[1756902315213,1.18954035,111630.0,111620.0,0.80807035]
[1756902315411,1.18954035,111630.0,111620.0,1.05807035]
[1756902319006,0.36266035,111630.0,111620.0,1.05807035]
[1756902321113,0.02447,111630.0,111620.0,0.73807035]